bitfinex/quotes_ETHUSD_20241105
["timestamp","ask_amount","ask_price","bid_price","bid_amount"]
[1730775024025,3.0,2404.8,2404.5,0.8044]
[1730775024395,3.0,2404.9,2404.5,9.12199]
[1730775024599,3.0,2404.9,2404.5,4.96315]
[1730775024812,3.0,2404.9,2404.5,5.876372]
[1730775026912,7.15819,2404.9,2404.5,5.876372]
[1730775027114,4.97327,2404.7,2404.3,0.781]
[1730775027314,4.1589,2404.5,2404.2,0.781]
[1730775027809,4.15883,2404.6,2404.2,0.781]
[1730775027999,7.97325,2404.7,2404.2,4.94029]
[1730775028204,3.0,2404.5,2404.2,5.850279]
[1730775029021,3.0,2404.5,2404.2,1.690989]
[1730775029541,7.15897,2404.5,2404.2,1.690989]
[1730775030311,3.0,2404.5,2404.2,1.690989]
[1730775030819,7.15889,2404.5,2404.2,1.690989]
[1730775031417,3.0,2404.5,2404.2,1.690989]
[1730775033453,0.26809535,2404.4,2404.2,1.690989]
[1730775034914,0.26809535,2404.4,2404.2,5.850369]
[1730775035114,0.26809535,2404.4,2404.3,0.5850369]
[1730775035817,3.0,2404.6,2404.3,0.5850369]
[1730775036350,0.26809535,2404.5,2404.3,0.5850369]
[1730775036541,0.26809535,2404.5,2404.4,0.7842]
[1730775040653,0.26809535,2404.5,2404.4,1.07386816]
[1730775041822,0.26809535,2404.5,2404.4,0.7842]
[1730775042421,0.26809535,2404.5,2404.4,1.07387305]
[1730775042625,0.26809535,2404.5,2404.4,0.7842]
[1730775042817,0.26809535,2404.5,2404.4,1.07387281]
[1730775043441,0.26809535,2404.5,2404.4,0.7842]
[1730775043649,0.26809535,2404.5,2404.4,1.07387008]
[1730775044923,0.26809535,2404.5,2404.4,0.7842]
[1730775051340,3.0,2404.6,2404.4,1.07388162]
[1730775051671,3.0,2404.6,2404.4,0.7842]
[1730775051672,0.26822602,2404.5,2404.4,0.7842]
[1730775051852,0.26822602,2404.5,2404.4,1.07388378]
[1730775052938,0.26822602,2404.5,2404.4,1.0738806]
[1730775056860,0.26822602,2404.5,2404.4,0.7842]
[1730775057054,0.26822602,2404.5,2404.4,1.0739484]
[1730775060258,0.26822602,2404.5,2404.4,0.7842]
[1730775060463,0.26822602,2404.5,2404.4,1.07397221]
[1730775062259,0.26822602,2404.5,2404.4,0.28977221]
[1730775063898,0.26822602,2404.5,2404.4,5.81109317]
[1730775064194,3.0,2404.9,2404.6,0.01]
[1730775064353,3.58404426,2405.6,2404.6,0.01]
[1730775064354,1.665103,2405.3,2404.9,0.7586]
[1730775064694,4.15783,2405.1,2405.0,0.28969602]
[1730775064985,4.15783,2405.1,2404.6,3.54541044]
[1730775064986,4.15801,2405.0,2404.6,0.7946]
[1730775065182,4.15801,2405.0,2404.7,0.28967833]
[1730775065395,4.158,2405.0,2404.8,0.28967833]
[1730775065554,4.158,2405.0,2404.6,0.7946]
[1730775065755,4.158,2405.0,2404.7,1.86106235]
[1730775065956,4.158,2405.0,2404.7,1.57149495]
[1730775067261,0.7568,2405.1,2404.7,1.57149495]
[1730775067589,7.32999434,2405.3,2405.1,0.7568]
[1730775067792,7.32999434,2405.2,2405.1,0.7568]
[1730775070193,7.32999434,2405.2,2404.6,0.70653132]
[1730775070194,4.15783,2405.1,2404.7,4.96372]
[1730775070358,4.15783,2405.1,2404.8,0.289095]
[1730775070561,12.30645434,2405.2,2404.8,1.57149495]
[1730775072396,12.30645434,2405.2,2404.8,2.52905676]
[1730775072690,11.48765434,2405.2,2404.9,0.08315213]
[1730775073101,7.32999434,2405.3,2405.2,4.15765]
[1730775073392,7.32999434,2405.3,2405.0,6.50588495]
[1730775073553,7.32999434,2405.3,2405.0,7.67003963]
[1730775073978,7.32999434,2405.3,2405.1,4.24096628]
[1730775074181,7.32999434,2405.3,2405.2,5.72914495]
[1730775074355,7.32999434,2405.3,2405.2,6.50554495]
[1730775075279,7.59012824,2405.3,2405.2,6.50554495]
[1730775075469,7.59012824,2405.3,2405.2,7.52599162]
[1730775078885,7.59012824,2405.3,2405.2,3.36834162]
[1730775079091,7.59012824,2405.3,2405.2,1.57149495]
[1730775081211,7.59012824,2405.3,2405.2,5.72914495]
[1730775081578,7.59012824,2405.3,2405.2,1.57149495]
[1730775084785,0.2601339,2405.3,2405.2,1.57149495]
[1730775084985,4.15708,2405.6,2405.2,1.57149495]
[1730775085187,0.26108198,2405.5,2405.2,1.57149495]
[1730775085911,0.26108198,2405.5,2405.2,2.63783045]
[1730775086116,0.26108198,2405.5,2405.2,6.79536045]
[1730775086315,4.15697,2405.6,2405.2,6.79536045]
[1730775086615,4.15697,2405.6,2405.2,5.72902495]
[1730775086800,0.26108198,2405.5,2405.2,5.72902495]
[1730775087119,0.26108198,2405.5,2405.2,1.57149495]
[1730775087777,4.91678,2405.7,2405.2,5.72911495]
[1730775088113,0.26108198,2405.6,2405.2,5.72911495]
[1730775089721,0.26108198,2405.6,2405.3,0.08314007]
[1730775090424,0.26108198,2405.6,2405.2,5.72911495]
[1730775092121,4.41808198,2405.6,2405.2,5.72911495]
[1730775092931,0.26108198,2405.6,2405.2,5.72911495]
[1730775093397,4.41808198,2405.6,2405.2,5.72911495]
[1730775093593,0.26108198,2405.6,2405.4,1.57149495]
[1730775094138,0.26108198,2405.6,2405.5,4.15713]
[1730775094495,3.7705,2405.9,2405.6,4.15695]
[1730775094736,3.7705,2405.9,2405.7,1.57149495]
[1730775094895,3.0,2406.1,2405.7,6.48010495]
[1730775095226,3.0,2406.1,2405.9,1.57149495]
[1730775095540,4.91606,2406.2,2405.9,1.57149495]
[1730775095541,0.7601,2406.2,2405.9,1.57149495]
[1730775096322,4.91615,2406.2,2405.9,1.57149495]
[1730775096630,4.15645,2405.9,2405.7,1.57149495]
[1730775096847,4.15722,2405.5,2405.3,1.57149495]
[1730775096997,4.94012,2405.5,2405.3,1.57149495]
[1730775097196,3.7829,2405.5,2405.3,1.57149495]
[1730775097609,7.94004,2405.5,2405.1,6.52200495]
[1730775097830,3.0,2405.3,2404.9,1.57149495]
[1730775098004,3.0,2405.3,2405.0,0.28926934]
[1730775098318,3.0,2405.3,2404.9,5.72955495]
[1730775099337,3.0,2405.3,2404.9,4.15806]
[1730775099741,4.1571,2405.6,2405.1,4.15782]
[1730775099742,8.31421,2405.6,2405.1,4.15782]
[1730775099939,0.7649,2405.9,2405.1,5.4731279]
[1730775099940,7.15717,2405.5,2405.1,5.4731279]
[1730775100139,7.15717,2405.5,2405.1,4.15782]
[1730775101199,7.15717,2405.5,2405.0,4.45483156]
[1730775101200,7.97617,2405.5,2405.0,4.45483156]
[1730775101512,7.97617,2405.5,2405.1,0.37239846]
[1730775101716,7.97617,2405.5,2405.1,4.24094332]
[1730775102721,7.97617,2405.5,2405.0,8.61282156]
[1730775102943,7.97617,2405.5,2405.1,1.65062596]
[1730775103139,3.819,2405.5,2405.2,0.28939944]
[1730775103432,3.0,2405.5,2405.1,5.43583316]
[1730775103687,3.0,2405.5,2405.2,1.19591467]
[1730775103846,4.15697,2405.6,2405.3,1.07998005]
[1730775103847,3.0,2405.6,2405.3,1.07998005]
[1730775104001,3.0,2405.6,2405.3,0.87373818]
[1730775104200,0.8089,2405.7,2405.3,4.94793]
[1730775104405,4.15673,2405.8,2405.3,4.94793]
[1730775104406,4.15673,2405.8,2405.4,0.87580919]
[1730775104635,4.15673,2405.8,2405.4,0.58644482]
[1730775104807,4.15673,2405.8,2405.4,4.74374482]
[1730775105013,4.15673,2405.8,2405.4,0.58644482]
[1730775105819,3.0,2405.7,2405.4,0.58644482]
[1730775106217,7.15682,2405.7,2405.4,0.58644482]
[1730775106404,7.15682,2405.7,2405.3,0.7906]
[1730775106609,7.15682,2405.7,2405.4,0.28936651]
[1730775106940,7.15682,2405.7,2405.3,0.7906]
[1730775108412,0.26095092,2405.6,2405.3,0.7906]
[1730775108712,0.7508,2405.5,2405.2,0.90651819]
[1730775109309,0.26095092,2405.4,2405.2,0.90651819]
[1730775110860,0.26095092,2405.4,2405.3,0.28937932]
[1730775111222,0.26095092,2405.4,2405.3,1.24049807]
[1730775111351,0.26095092,2405.4,2405.3,0.28936915]
[1730775111564,0.26095092,2405.4,2405.1,4.15772]
[1730775111731,0.26095092,2405.4,2405.2,0.28937621]
[1730775111931,0.26095092,2405.4,2405.0,4.98839]
[1730775112236,0.26095092,2405.4,2405.1,0.2893766]
[1730775112444,0.26095092,2405.4,2405.2,0.2893766]
[1730775112762,0.26095092,2405.4,2405.1,4.15782]
[1730775112967,0.26095092,2405.4,2405.2,0.28936923]
[1730775113169,0.26095092,2405.4,2405.1,5.073455]
[1730775113328,0.26095092,2405.4,2405.2,0.28937667]
[1730775113650,0.26095092,2405.4,2405.1,5.073455]
[1730775113844,0.26095092,2405.4,2405.2,0.28937649]
[1730775114033,0.26095092,2405.4,2405.1,5.073455]
[1730775114234,0.26095092,2405.4,2405.2,0.28937245]
[1730775114433,0.26095092,2405.4,2405.1,5.073455]
[1730775114663,0.26095092,2405.4,2405.2,0.28936441]
[1730775114869,0.26095092,2405.4,2405.2,0.5903855]
[1730775116637,0.26095092,2405.4,2405.2,4.7480255]
[1730775117039,7.15689,2405.7,2405.2,4.7480255]
[1730775117250,4.41803182,2405.6,2405.2,0.5903855]
[1730775117770,4.41803182,2405.6,2405.2,4.7480055]
[1730775119381,0.26106182,2405.6,2405.3,0.08313909]
[1730775120503,0.26106182,2405.6,2405.3,1.80002455]
[1730775121094,0.26106182,2405.6,2405.3,4.97535]
[1730775121411,0.26106182,2405.6,2405.3,6.5452281]
[1730775121908,0.26106182,2405.6,2405.3,10.7025981]
[1730775122088,0.26106182,2405.6,2405.3,2.3878781]
[1730775122670,4.41802182,2405.6,2405.3,0.818]
[1730775123614,0.26106182,2405.6,2405.3,0.818]
[1730775125175,0.26106182,2405.6,2405.3,1.47253781]
[1730775125911,4.41807182,2405.6,2405.3,1.47253781]
[1730775126074,0.26106182,2405.6,2405.3,1.47253781]
[1730775126301,3.26106182,2405.6,2405.3,1.47253781]
[1730775126500,7.41803182,2405.6,2405.3,1.47253781]
[1730775126806,7.41803182,2405.6,2405.3,0.818]
[1730775127908,0.26106182,2405.6,2405.3,0.818]
[1730775129751,4.41808182,2405.6,2405.4,0.28958389]
[1730775129908,0.26106182,2405.6,2405.3,0.818]
[1730775130109,0.26106182,2405.6,2405.4,0.28958468]
[1730775130422,0.26106182,2405.6,2405.3,1.88831781]
[1730775130620,4.41810182,2405.6,2405.3,1.88831781]
[1730775130828,4.41810182,2405.6,2405.3,0.818]
[1730775131540,4.41810182,2405.6,2405.4,0.28960034]
[1730775131744,4.41810182,2405.6,2405.3,0.818]
[1730775131946,0.26106182,2405.6,2405.4,0.2896028]
[1730775132112,0.26106182,2405.6,2405.3,0.818]
[1730775132308,0.26106182,2405.6,2405.4,0.497563]
[1730775132508,0.26106182,2405.6,2405.5,0.37274324]
[1730775132746,4.98075,2405.8,2405.5,0.37274324]
[1730775132951,4.98075,2405.8,2405.5,0.08313367]
[1730775132952,0.26128361,2405.6,2405.5,0.08313367]
[1730775133131,9.13747,2405.8,2405.4,0.497563]
[1730775133132,4.98075,2405.8,2405.4,0.497563]
[1730775133304,0.26128361,2405.6,2405.5,0.28960624]
[1730775134458,0.26128361,2405.6,2405.4,0.497563]
[1730775135149,0.26128361,2405.6,2405.5,0.28961421]
[1730775136847,0.26128361,2405.6,2405.4,0.497563]
[1730775137686,0.26128361,2405.6,2405.5,0.28959903]
[1730775138584,4.98075,2405.8,2405.5,1.03116256]
[1730775138780,0.26136426,2405.6,2405.4,0.08313518]
[1730775138996,7.96659,2406.0,2405.5,6.0165771]
[1730775139292,4.15567,2406.4,2405.9,1.5698781]
[1730775139502,2.474554,2406.6,2406.2,5.7256681]
[1730775139503,0.8102,2406.6,2406.2,5.7256681]
[1730775140291,4.15511,2406.7,2406.2,5.7256681]
[1730775140656,4.9652,2406.8,2406.2,1.5698781]
[1730775140989,4.15517,2406.7,2406.2,5.7257781]
[1730775141779,7.15534,2406.6,2406.2,1.5698781]
[1730775142783,7.15534,2406.6,2406.2,0.67897059]
[1730775143385,3.0,2406.6,2406.2,0.67897059]
[1730775143732,3.8102,2406.8,2406.3,0.7918]
[1730775143896,3.0,2406.6,2406.3,0.7918]
[1730775144098,7.15525,2406.6,2406.3,0.7918]
[1730775145323,7.15525,2406.6,2406.3,1.77007406]
[1730775146091,3.0,2406.6,2406.3,1.77007406]
[1730775149240,4.15542,2406.5,2406.1,0.7936]
[1730775149755,0.7767,2406.4,2405.7,0.7936]
[1730775149935,4.15696,2405.6,2405.3,0.7936]
[1730775150139,0.7767,2406.0,2405.3,1.49381983]
[1730775150140,4.15689,2405.7,2405.3,1.49381983]
[1730775150446,4.15663,2405.8,2405.3,5.65128983]
[1730775150615,4.93307,2406.0,2405.4,4.15718]
[1730775150819,3.0,2405.9,2405.4,8.3144]
[1730775151035,7.15646,2405.9,2405.5,0.98082198]
[1730775151210,4.15692,2405.7,2405.3,1.49381983]
[1730775153101,7.15645,2405.9,2405.4,4.15728]
[1730775153342,4.15662,2405.8,2405.3,5.65121983]
[1730775153538,4.41815566,2405.8,2405.3,5.65121983]
[1730775153920,4.41815566,2405.8,2405.3,9.80861983]
[1730775154129,4.41815566,2405.8,2405.4,0.98086198]
[1730775154339,4.15681,2405.7,2405.4,0.98086198]
[1730775154556,4.15699,2405.6,2405.2,4.15761]
[1730775154731,4.41862643,2405.6,2405.2,4.15761]
[1730775155056,0.26163643,2405.6,2405.2,4.15761]
[1730775155845,4.158,2405.0,2404.5,4.91654]
[1730775156037,7.15819,2404.9,2404.6,0.28840985]
[1730775156360,7.15819,2404.9,2404.3,4.15912]
[1730775156361,4.1586,2404.7,2404.3,0.7577]
[1730775157071,4.42047643,2404.6,2404.3,0.7577]
[1730775157578,0.26163643,2404.6,2404.4,0.0831719]
[1730775157784,0.26163643,2404.6,2404.4,4.65902919]
[1730775158073,3.0,2404.8,2404.4,4.65902919]
[1730775158258,0.26163643,2404.7,2404.4,0.49999919]
[1730775158445,3.0,2404.8,2404.4,0.49999919]
[1730775158646,0.26163643,2404.7,2404.4,4.65901919]
[1730775158877,3.0,2404.8,2404.5,0.95758392]
[1730775159079,0.26163643,2404.7,2404.5,0.95758392]
[1730775159292,4.15907,2404.4,2403.8,4.92925]
[1730775159440,3.7724,2404.6,2403.8,4.92925]
[1730775159441,4.15966,2404.1,2403.8,0.7693]
[1730775159778,4.15949,2404.2,2403.8,0.7693]
[1730775159981,0.26163643,2404.0,2403.8,0.7693]
[1730775160234,4.15949,2404.2,2403.9,0.492945]
[1730775160588,4.15949,2404.2,2403.8,0.7693]
[1730775160589,4.15957,2404.1,2403.8,0.7693]
[1730775160881,4.15949,2404.2,2403.8,0.7693]
[1730775160882,8.31901,2404.2,2403.8,0.7693]
[1730775161078,4.15949,2404.2,2403.8,0.7693]
[1730775162178,7.15908,2404.4,2403.8,4.92937]
[1730775162389,3.0,2404.3,2403.8,4.92937]
[1730775162677,7.1593,2404.3,2403.9,0.492937]
[1730775162986,4.15939,2404.2,2403.9,0.492937]
[1730775164822,7.1593,2404.3,2403.9,0.492937]
[1730775165197,4.1594,2404.2,2403.9,0.492937]
[1730775165395,4.1594,2404.2,2403.8,0.7693]
[1730775166096,3.0,2404.3,2403.8,4.92934]
[1730775166487,7.15929,2404.3,2403.8,4.92934]
[1730775166715,7.15929,2404.3,2403.8,0.7693]
[1730775167019,4.1594,2404.2,2403.8,0.493946]
[1730775168427,0.2602649,2404.1,2403.8,0.493946]
[1730775168612,0.2602649,2404.1,2403.9,0.8293]
[1730775168918,3.0,2404.3,2403.9,4.98911]
[1730775169123,0.2602649,2404.2,2403.9,4.98911]
[1730775169427,4.1594,2404.2,2403.8,0.493946]
[1730775169718,0.2602649,2404.1,2403.7,0.7727]
[1730775169925,4.4198449,2404.1,2403.7,0.7727]
[1730775170288,4.15976,2404.0,2403.7,0.7727]
[1730775170483,0.25906471,2403.9,2403.7,0.7727]
[1730775170829,0.25906471,2403.9,2403.7,1.266015]
[1730775171186,4.15958,2404.1,2403.7,1.266015]
[1730775171415,0.25906471,2403.8,2403.7,1.266015]
[1730775171641,4.15958,2404.1,2403.7,1.266015]
[1730775171940,4.15958,2404.1,2403.7,1.266015]
[1730775172122,0.25906471,2404.0,2403.7,1.266015]
[1730775172739,4.41882471,2404.0,2403.7,1.266015]
[1730775176844,0.25906471,2404.0,2403.7,5.426255]
[1730775177336,0.25906471,2403.9,2403.7,5.426255]
[1730775177545,9.10513,2404.2,2403.7,5.426255]
[1730775177743,0.25906471,2403.8,2403.7,5.426255]
[1730775177948,9.10513,2404.2,2403.7,5.426255]
[1730775177949,4.94559,2404.2,2403.7,1.266015]
[1730775178127,0.25906471,2403.8,2403.7,1.266015]
[1730775178313,4.15966,2404.1,2403.7,1.266015]
[1730775178517,0.25906471,2404.0,2403.7,1.266015]
[1730775179081,0.25906471,2404.0,2403.7,0.7727]
[1730775179281,4.41885471,2404.0,2403.7,0.7727]
[1730775181089,0.25906471,2404.0,2403.7,0.7727]
[1730775181395,4.15956,2404.1,2403.7,0.7727]
[1730775181599,0.25889314,2403.9,2403.7,0.7727]
[1730775181805,4.15956,2404.1,2403.7,1.682047]
[1730775181959,4.15956,2404.1,2403.8,0.28802022]
[1730775182164,4.15956,2404.1,2403.7,1.682047]
[1730775182395,4.15956,2404.1,2403.8,0.28819528]
[1730775182598,4.15956,2404.1,2403.7,1.682047]
[1730775182801,4.15956,2404.1,2403.8,0.37138975]
[1730775183008,4.15956,2404.1,2403.7,1.682047]
[1730775183163,4.15956,2404.1,2403.8,0.28819587]
[1730775183364,3.0,2404.3,2403.9,0.28819587]
[1730775183365,0.25889314,2404.0,2403.9,0.28819587]
[1730775183867,0.25889314,2404.0,2403.9,4.15983]
[1730775184068,3.0,2404.3,2404.0,4.15972]
[1730775184305,3.0,2404.3,2404.1,0.8101]
[1730775184306,0.25889314,2404.2,2404.1,0.8101]
[1730775184471,3.0,2404.3,2404.1,0.28873879]
[1730775184665,7.15929,2404.3,2403.9,0.8101]
[1730775184868,0.8017,2404.2,2404.0,0.28876809]
[1730775185071,0.8017,2404.2,2404.1,0.28876809]
[1730775185481,7.9611,2404.2,2404.1,0.28876809]
[1730775186366,7.9611,2404.2,2404.1,0.75167738]
[1730775187523,7.9611,2404.2,2403.7,4.16022]
[1730775187736,7.9611,2404.2,2404.1,0.28938571]
[1730775188003,7.9611,2404.2,2404.1,0.75241489]
[1730775190390,8.4987,2404.2,2404.1,0.75241489]
[1730775190627,8.4987,2404.2,2404.1,0.28938571]
[1730775190775,7.7094,2404.2,2403.4,0.4823535]
[1730775191109,7.7094,2404.2,2403.3,0.87189146]
[1730775191110,7.94972,2403.6,2403.5,0.75370714]
[1730775191808,7.94972,2403.6,2403.5,0.75322073]
[1730775192402,7.94972,2403.6,2403.5,0.28988272]
[1730775193711,7.16042,2403.6,2403.5,0.75267321]
[1730775195112,3.0,2403.8,2403.5,5.15589968]
[1730775195440,3.0,2403.8,2403.6,0.75175089]
[1730775195643,3.0,2403.8,2403.7,0.75175089]
[1730775198435,3.25834814,2403.8,2403.7,0.75175089]
[1730775199034,0.25834814,2403.8,2403.7,0.75175089]
[1730775199239,0.25834814,2403.8,2403.7,2.02464763]
[1730775199440,3.0,2403.9,2403.7,2.02464763]
[1730775199678,3.0,2403.9,2403.8,0.75175089]
[1730775201180,3.0,2403.9,2403.8,0.28913033]
[1730775201480,3.0,2403.9,2403.8,0.75171006]
[1730775201785,4.15974,2404.0,2403.8,0.75168454]
[1730775202079,4.15974,2404.0,2403.7,0.7574]
[1730775202080,3.0,2404.1,2403.9,0.28910481]
[1730775202273,3.0,2404.1,2404.0,0.28910481]
[1730775202481,7.15956,2404.1,2404.0,0.28910481]
[1730775202662,3.0,2404.2,2404.0,0.28910481]
[1730775202862,7.15947,2404.2,2404.1,0.28909321]
[1730775203284,7.15947,2404.2,2403.7,9.07781]
[1730775203443,7.15947,2404.2,2403.8,1.65949107]
[1730775203649,7.15947,2404.2,2403.9,0.28911463]
[1730775203849,7.15947,2404.2,2404.0,0.28911463]
[1730775204159,7.15947,2404.2,2403.8,0.907781]
[1730775204348,7.15947,2404.2,2403.9,0.28912194]
[1730775204692,7.15947,2404.2,2404.0,0.28912194]
[1730775204981,4.15982,2404.0,2403.8,0.907781]
[1730775205190,7.15942,2404.2,2403.9,0.28913993]
[1730775205341,4.15956,2404.1,2403.7,0.7574]
[1730775205685,7.15942,2404.2,2403.8,0.28913703]
[1730775205863,7.15942,2404.2,2403.9,0.28913703]
[1730775206048,7.15942,2404.2,2403.7,4.91764]
[1730775206250,7.15942,2404.2,2403.8,0.7808997]
[1730775206600,7.15942,2404.2,2403.9,0.2891357]
[1730775206890,7.15942,2404.2,2403.8,0.491764]
[1730775207893,11.31892,2404.2,2403.8,0.491764]
[1730775208488,7.15942,2404.2,2403.8,0.491764]
[1730775208660,11.3189,2404.2,2403.8,0.491764]
[1730775208848,7.15942,2404.2,2403.8,0.491764]
[1730775210289,11.31896,2404.2,2403.8,0.491764]
[1730775210747,7.15942,2404.2,2403.8,0.491764]
[1730775212062,11.31891,2404.2,2403.8,0.491764]
[1730775212393,7.15942,2404.2,2403.8,0.491764]
[1730775212751,11.31889,2404.2,2403.8,0.491764]
[1730775213294,7.15942,2404.2,2403.8,0.491764]
[1730775213453,0.25804534,2404.1,2403.8,0.491764]
[1730775216096,0.25804534,2404.1,2403.9,0.5409324]
[1730775222501,4.41760534,2404.1,2403.9,0.5409324]
[1730775223259,3.25804534,2404.1,2403.9,0.5409324]
[1730775224576,3.25804534,2404.1,2403.8,4.16007]
[1730775224976,0.25804534,2404.1,2403.9,0.28999647]
[1730775225186,0.25804534,2404.1,2403.8,4.16007]
[1730775225392,0.25804534,2404.1,2403.9,0.28998932]
[1730775225601,0.25804534,2404.1,2403.8,4.16007]
[1730775225811,0.25804534,2404.1,2403.9,0.78176249]
[1730775225988,0.25804534,2404.1,2403.9,0.491747]
[1730775227295,4.41760534,2404.1,2403.9,0.491747]
[1730775227601,4.41760534,2404.1,2403.7,4.91763]
[1730775227897,4.41760534,2404.1,2403.8,0.29007235]
[1730775228075,4.41760534,2404.1,2403.9,0.29007235]
[1730775228280,4.41760534,2404.1,2403.7,4.91763]
[1730775228476,4.41760534,2404.1,2403.8,0.29011715]
[1730775228689,4.41760534,2404.1,2403.9,0.29011715]
[1730775228914,4.41760534,2404.1,2403.7,4.91763]
[1730775229197,4.41760534,2404.1,2403.8,1.19792203]
[1730775229480,4.1598,2404.0,2403.9,0.29011903]
[1730775229885,4.41815826,2404.0,2403.9,0.29011903]
[1730775232219,0.25835826,2404.0,2403.9,0.29019519]
[1730775235587,0.25835826,2404.0,2403.9,0.29020538]
[1730775236819,4.41808826,2404.0,2403.7,0.7574]
[1730775237194,4.41808826,2404.0,2403.6,4.16032]
[1730775237624,4.41808826,2404.0,2403.6,5.09440265]
[1730775237779,4.41808826,2404.0,2403.7,0.75454378]
[1730775237978,4.41808826,2404.0,2403.8,0.75454378]
[1730775238205,4.41808826,2404.0,2403.9,0.29020452]
[1730775238406,9.75727661,2404.0,2403.3,5.81411146]
[1730775238592,8.32038,2403.8,2403.4,0.75458406]
[1730775238807,5.22896882,2403.7,2403.5,0.75458406]
[1730775239010,8.22896882,2403.7,2403.6,0.29022001]
[1730775239827,8.22896882,2403.7,2403.3,0.87189146]
[1730775240118,8.22896882,2403.7,2403.4,0.75444199]
[1730775240321,8.22896882,2403.7,2403.5,0.29016537]
[1730775240522,8.22896882,2403.7,2403.3,0.87189146]
[1730775240818,8.22896882,2403.7,2403.4,0.75442967]
[1730775240996,8.22896882,2403.7,2403.5,0.29016063]
[1730775241190,3.25841882,2403.7,2403.4,0.8303]
[1730775241391,0.25841882,2403.7,2403.5,0.7543711]
[1730775241610,3.0,2404.0,2403.6,5.02509343]
[1730775241926,0.25825733,2403.9,2403.7,0.29007058]
[1730775242085,0.25825733,2403.9,2403.6,4.73494811]
[1730775242292,0.25825733,2403.9,2403.7,1.08296118]
[1730775242584,4.41815733,2403.9,2403.8,0.29006118]
[1730775242827,0.25825733,2403.9,2403.8,0.29006118]
[1730775245585,0.25825733,2403.9,2403.8,0.29003792]
[1730775246237,10.10558835,2403.9,2403.8,0.29003792]
[1730775246386,3.0,2403.4,2403.3,0.87189146]
[1730775246588,3.25832799,2403.4,2403.3,0.87189146]
[1730775248795,3.0,2403.4,2403.3,0.87189146]
[1730775249110,3.2573285,2403.4,2403.3,0.87189146]
[1730775249303,7.4180985,2403.4,2403.3,0.87189146]
[1730775250432,3.2573285,2403.4,2403.3,0.87189146]
[1730775251010,0.2573285,2403.4,2403.3,0.87189146]
[1730775251344,0.2573285,2403.4,2403.3,6.41612993]
[1730775251649,0.2573285,2403.4,2403.3,8.07162595]
[1730775251850,4.97445,2404.0,2403.5,4.16047]
[1730775252148,4.15966,2404.1,2403.6,0.7955]
[1730775252446,4.15981,2404.0,2403.6,0.7955]
[1730775253702,4.15981,2404.0,2403.6,1.707171]
[1730775253901,3.0,2404.0,2403.6,5.867491]
[1730775254706,4.15966,2404.1,2403.7,4.16025]
[1730775256007,7.15942,2404.2,2403.7,4.16025]
[1730775256201,7.15942,2404.2,2403.8,0.5867421]
[1730775258552,0.25775254,2404.1,2403.8,0.5867421]
[1730775259019,0.25775254,2404.1,2403.9,0.8226]
[1730775260928,0.25775254,2404.1,2403.9,0.90579066]
[1730775261333,0.25775254,2404.1,2403.9,0.8226]
[1730775261546,0.25775254,2404.1,2404.0,0.55694121]
[1730775262142,3.0,2404.4,2404.0,4.71667121]
[1730775262648,0.25862068,2404.3,2404.0,4.71667121]
[1730775262846,0.25862068,2404.3,2404.2,4.91358]
[1730775263007,0.25862068,2404.3,2404.2,5.20268842]
[1730775263209,4.15837,2404.8,2404.3,4.15908]
[1730775263408,4.15837,2404.8,2404.2,6.35283422]
[1730775263409,0.25043747,2404.7,2404.2,6.0637258]
[1730775263645,0.25043747,2404.7,2404.4,4.15902]
[1730775263810,0.25043747,2404.7,2404.3,4.15919]
[1730775264012,4.15865,2404.7,2404.3,4.1592]
[1730775264241,0.25044759,2404.6,2404.3,4.63671434]
[1730775264450,0.25044759,2404.6,2404.3,0.47751434]
[1730775265139,0.25044759,2404.6,2404.3,4.63670434]
[1730775265829,7.15836,2404.8,2404.3,4.63670434]
[1730775266045,0.25065008,2404.7,2404.3,4.63670434]
[1730775266343,0.25065008,2404.7,2404.4,0.55694121]
[1730775266546,7.15836,2404.8,2404.4,0.55694121]
[1730775266709,0.25065008,2404.6,2404.4,0.55694121]
[1730775266909,7.15836,2404.8,2404.4,0.55694121]
[1730775267134,0.25065008,2404.5,2404.3,4.63670434]
[1730775267329,7.15836,2404.8,2404.3,4.63670434]
[1730775267539,0.25065008,2404.4,2404.3,4.63670434]
[1730775267733,7.15836,2404.8,2404.3,4.63670434]
[1730775267939,0.25065008,2404.4,2404.3,4.63670434]
[1730775268139,7.15836,2404.8,2404.3,4.63670434]
[1730775268440,0.76,2404.7,2404.2,0.7542]
[1730775268640,4.15903,2404.5,2404.0,4.9122]
[1730775268847,8.31753,2404.6,2404.1,4.15954]
[1730775269155,0.25065008,2404.4,2404.1,4.15954]
[1730775269452,0.25065008,2404.3,2404.1,4.15954]
[1730775269825,4.95397,2404.5,2404.1,5.066713]
[1730775270008,0.25065008,2404.4,2404.1,5.066713]
[1730775270438,0.25065008,2404.4,2404.1,0.907173]
[1730775270757,0.25065008,2404.4,2404.0,4.93159]
[1730775271110,0.25065008,2404.4,2404.0,9.09124]
[1730775271310,0.25065008,2404.4,2404.0,9.09122]
[1730775271772,0.25065008,2404.4,2404.3,0.8159]
[1730775272052,3.0,2404.6,2404.3,0.8159]
[1730775272214,0.25065008,2404.4,2404.3,0.8159]
[1730775272545,7.15877,2404.6,2404.3,0.8159]
[1730775273010,0.25065008,2404.5,2404.3,0.8159]
[1730775276021,4.40955008,2404.5,2404.1,0.8009]
[1730775276246,0.25065008,2404.5,2404.2,4.15938]
[1730775276749,0.25065008,2404.5,2404.1,0.8009]
[1730775277260,0.25065008,2404.5,2404.2,4.15936]
[1730775281464,0.25065008,2404.5,2404.2,8.31865]
[1730775281636,0.25065008,2404.5,2404.2,5.071245]
[1730775281836,7.15853,2404.7,2404.3,4.15919]
[1730775282041,0.25107535,2404.6,2404.3,4.15919]
[1730775283280,0.25107535,2404.6,2404.4,0.781]
[1730775283574,0.25107535,2404.6,2404.5,4.15886]
[1730775283866,0.7977,2405.0,2404.6,4.15853]
[1730775284051,0.7977,2405.0,2404.7,4.1585]
[1730775284869,3.7977,2405.0,2404.7,4.1585]
[1730775285894,3.0,2405.1,2404.7,4.1585]
[1730775286094,3.0,2405.1,2404.8,4.15833]